lending/lending_fUSD_20240622
["ID","MTS","AMOUNT","RATE_DAILY","PERIOD"]
[330137115,1719036076803,-500.0,0.00043835,120]
[330137116,1719036076841,-615.71,0.00043835,120]
[330137117,1719036076877,-500.0,0.00043835,120]
[330137118,1719036076916,-513.86686945,0.00043835,120]
[330137119,1719036076952,-693.64,0.00043835,120]
[330137120,1719036076991,-567.71,0.00043835,120]
[330137121,1719036077030,-500.0,0.00043835,120]
[330137122,1719036077074,-3987.44,0.00043835,120]
[330137123,1719036077113,-3124.66,0.00043835,120]
[330137124,1719036077151,-594.59,0.00043835,120]
[330137125,1719036077189,-708.63,0.00043835,120]
[330137126,1719036077228,-500.0,0.00043835,120]
[330137127,1719036077264,-500.0,0.00043835,120]
[330137128,1719036077301,-2054.59,0.00043835,120]
[330137129,1719036077337,-603.07,0.00043835,120]
[330137130,1719036077377,-500.0,0.00043835,120]
[330137131,1719036077416,-1211.62,0.00043835,120]
[330137132,1719036077455,-500.0,0.00043835,120]
[330137133,1719036077494,-676.36,0.00043835,120]
[330137134,1719036077529,-500.0,0.00043835,120]
[330137135,1719036077564,-500.0,0.00043835,120]
[330137136,1719036077599,-5421.1,0.00043835,120]
[330137137,1719036077637,-500.0,0.00043835,120]
[330137138,1719036077672,-688.0,0.00043835,120]
[330137139,1719036077707,-500.0,0.00043835,120]
[330137140,1719036077742,-2915.59,0.00043835,120]
[330137141,1719036077778,-8027.45,0.00043835,120]
[330137142,1719036077814,-2487.67,0.00043835,120]
[330137143,1719036077853,-570.34425962,0.00043835,120]
[330137144,1719036077890,-519.27,0.00043835,120]
[330137145,1719036077926,-500.0,0.00043835,120]
[330137146,1719036077962,-500.0,0.00043835,120]
[330137147,1719036077997,-708.71,0.00043835,120]
[330137148,1719036078034,-500.0,0.00043835,120]
[330137149,1719036078071,-500.0,0.00043835,120]
[330137150,1719036078108,-500.0,0.00043835,120]
[330137151,1719036078144,-500.0,0.00043835,120]
[330137152,1719036078180,-835.31,0.00043835,120]
[330137153,1719036078216,-500.0,0.00043835,120]
[330137154,1719036078253,-500.0,0.00043835,120]
[330137155,1719036078292,-9801.93,0.00043835,120]
[330137156,1719036078331,-1077.8,0.00043835,120]
[330137157,1719036078371,-500.0,0.00043835,120]
[330137158,1719036078407,-1403.67,0.00043835,120]
[330137159,1719036078446,-500.0,0.00043835,120]
[330137160,1719036078485,-500.0,0.00043835,120]
[330137161,1719036078603,-500.0,0.00043835,120]
[330137162,1719036078644,-500.0,0.00043835,120]
[330137163,1719036078684,-500.0,0.00043835,120]
[330137164,1719036078727,-1451.03,0.00043835,120]
[330137165,1719036078762,-554.01,0.00043835,120]
[330137166,1719036078798,-503.51161705,0.00043835,120]
[330137167,1719036078834,-500.0,0.00043835,120]
[330137168,1719036078873,-2515.25,0.00043835,120]
[330137169,1719036078916,-500.0,0.00043835,120]
[330137170,1719036078955,-500.0,0.00043835,120]
[330137171,1719036078994,-42281.31,0.00043835,120]
[330137172,1719036079029,-316.04646589,0.00043835,120]
[330137173,1719036079065,-668.77,0.00043835,120]
[330137174,1719036079103,-5124.45,0.00043835,120]
[330137175,1719036079140,-2204.33,0.00043835,120]
[330137176,1719036079180,-3103.83,0.00043835,120]
[330137177,1719036079219,-643.38,0.00043835,120]
[330137178,1719036079258,-41986.14,0.00043835,120]
[330137179,1719036079295,-6238.58,0.00043835,120]
[330137180,1719036079334,-500.0,0.00043835,120]
[330137181,1719036079374,-620.73,0.00043835,120]
[330137182,1719036079413,-751.13,0.00043835,120]
[330137183,1719036079451,-662.68,0.00043835,120]
[330137184,1719036079489,-500.0,0.00043835,120]
[330137185,1719036079526,-500.0,0.00043835,120]
[330137186,1719036079563,-3850.64,0.00043835,120]
[330137187,1719036079599,-500.0,0.00043835,120]
[330137188,1719036079636,-500.0,0.00043835,120]
[330137189,1719036079675,-795.08,0.00043835,120]
[330137190,1719036079711,-500.0,0.00043835,120]
[330137191,1719036079750,-500.0,0.00043835,120]
[330137192,1719036079787,-500.0,0.00043835,120]
[330137193,1719036079826,-500.0,0.00043835,120]
[330137194,1719036079864,-500.0,0.00043835,120]
[330137195,1719036079906,-500.0,0.00043835,120]
[330137196,1719036079944,-804.08,0.00043835,120]
[330137197,1719036079983,-500.0,0.00043835,120]
[330137198,1719036080023,-500.0,0.00043835,120]
[330137199,1719036080064,-500.0,0.00043835,120]
[330137200,1719036080102,-997.76,0.00043835,120]
[330137201,1719036080140,-500.0,0.00043835,120]
[330137202,1719036080177,-500.0,0.00043835,120]
[330137203,1719036080215,-455.19055212,0.00043835,120]
[330137204,1719036080258,-500.0,0.00043835,120]
[330137205,1719036080303,-3756.06,0.00043835,120]
[330137206,1719036080354,-500.0,0.00043835,120]
[330137207,1719036080399,-500.0,0.00043835,120]
[330137208,1719036080447,-500.0,0.00043835,120]
[330137209,1719036080488,-500.0,0.00043835,120]
[330137210,1719036080527,-500.0,0.00043835,120]
[330137211,1719036080565,-500.0,0.00043835,120]
[330137212,1719036080603,-5903.12,0.00043835,120]
[330137213,1719036080639,-500.0,0.00043835,120]
[330137214,1719036080676,-380.29817568,0.00043835,120]
[330137215,1719036080715,-810.49,0.00043835,120]
[330137216,1719036080754,-1150.45,0.00043835,120]
[330137217,1719036080793,-2719.52,0.00043835,120]
[330137218,1719036080834,-500.0,0.00043835,120]
[330137219,1719036080871,-500.0,0.00043835,120]
[330137220,1719036080912,-500.0,0.00043835,120]
[330137221,1719036080949,-2646.3,0.00043835,120]
[330137222,1719036080985,-500.0,0.00043835,120]
[330137223,1719036081022,-500.0,0.00043835,120]
[330137224,1719036081060,-500.0,0.00043835,120]
[330137225,1719036081101,-500.0,0.00043835,120]
[330137226,1719036081144,-895.43,0.00043835,120]
[330137227,1719036081181,-500.0,0.00043835,120]
[330137228,1719036081218,-500.0,0.00043835,120]
[330137229,1719036081256,-500.0,0.00043835,120]
[330137230,1719036081296,-4377.78,0.00043835,120]
[330137231,1719036081334,-500.0,0.00043835,120]
[330137232,1719036081378,-500.0,0.00043835,120]
[330137233,1719036081417,-500.0,0.00043835,120]
[330137234,1719036081459,-500.0,0.00043835,120]
[330137235,1719036081495,-500.0,0.00043835,120]
[330137236,1719036081532,-858.48,0.00043835,120]
[330137237,1719036081570,-3031.64,0.00043835,120]
[330137238,1719036081606,-500.0,0.00043835,120]
[330137239,1719036081643,-1034.11,0.00043835,120]
[330137240,1719036081682,-2000.0,0.00043835,30]
[330137241,1719036081721,-584.53,0.00043835,120]
[330137242,1719036081758,-500.0,0.00043835,120]
[330137243,1719036081796,-741.25,0.00043835,120]
[330137244,1719036081833,-739.19,0.00043835,120]
[330137245,1719036081868,-631.0,0.00043835,120]
[330137246,1719036081905,-2218.12,0.00043835,120]
[330137247,1719036081944,-197.64337646,0.00043835,120]
[330137248,1719036081980,-500.0,0.00043835,120]
[330137249,1719036082018,-1942.42,0.00043835,120]
[330137250,1719036082054,-642.93,0.00043835,120]
[330137251,1719036082088,-544.37,0.00043835,120]
[330137252,1719036082124,-2957.19,0.00043835,120]
[330137253,1719036082160,-500.0,0.00043835,120]
[330137254,1719036082195,-500.0,0.00043835,120]
[330137255,1719036082230,-2060.14,0.00043835,120]
[330137256,1719036082266,-14483.59,0.00043835,120]
[330137257,1719036082301,-500.0,0.00043835,120]
[330137258,1719036082338,-1722.23,0.00043835,120]
[330137259,1719036082382,-500.0,0.00043835,120]
[330137260,1719036082418,-7284.08,0.00043835,120]
[330137261,1719036082456,-500.0,0.00043835,120]
[330137262,1719036082492,-1099.44,0.00043835,90]
[330137263,1719036082530,-500.0,0.00043835,120]
[330137264,1719036082567,-872.0,0.00043835,120]
[330137265,1719036082602,-500.0,0.00043835,120]
[330137266,1719036082639,-527.93517142,0.00043835,120]
[330137267,1719036082812,-500.0,0.00043835,120]
[330137268,1719036082853,-500.0,0.00043835,120]
[330137269,1719036082891,-500.0,0.00043835,120]
[330137270,1719036082928,-513.46,0.00043835,120]
[330137271,1719036082967,-500.0,0.00043835,120]
[330137272,1719036083006,-851.62,0.00043835,120]
[330137273,1719036083045,-500.0,0.00043835,120]
[330137274,1719036083082,-2167.3,0.00043835,120]
[330137275,1719036083121,-984.67,0.00043835,120]
[330137276,1719036083157,-479.7481795,0.00043835,120]
[330137277,1719036083195,-500.0,0.00043835,120]
[330137278,1719036083233,-500.0,0.00043835,120]
[330137279,1719036083268,-500.0,0.00043835,120]
[330137280,1719036083305,-11775.14,0.00043835,120]
[330137281,1719036083342,-500.0,0.00043835,120]
[330137282,1719036083383,-567.07,0.00043835,120]
[330137283,1719036083419,-784.0,0.00043835,120]
[330137284,1719036083459,-503.36807649,0.00043835,120]
[330137285,1719036083496,-1186.53,0.00043835,120]
[330137286,1719036083531,-491.40768472,0.00043835,120]
[330137287,1719036083568,-957.93,0.00043835,120]
[330137288,1719036083606,-234.32377056,0.00043835,120]
[330137289,1719036083643,-1718.06,0.00043835,120]
[330137290,1719036083680,-500.0,0.00043835,120]
[330137291,1719036083716,-556.22,0.00043835,120]
[330137292,1719036083756,-500.0,0.00043835,120]
[330137293,1719036083802,-2390.42,0.00043835,120]
[330137294,1719036083847,-500.0,0.00043835,120]
[330137295,1719036083890,-500.0,0.00043835,120]
[330137296,1719036083929,-500.0,0.00043835,120]
[330137297,1719036083965,-5700.82,0.00043835,120]
[330137298,1719036084003,-500.0,0.00043835,120]
[330137299,1719036084043,-515.10297155,0.00043835,120]
[330137300,1719036084084,-500.0,0.00043835,120]
[330137301,1719036084124,-500.0,0.00043835,120]
[330137302,1719036084161,-500.0,0.00043835,120]
[330137303,1719036084199,-500.0,0.00043835,120]
[330137304,1719036084239,-2231.92,0.00043835,120]
[330137305,1719036084278,-500.0,0.00043835,120]
[330137306,1719036084317,-835.52,0.00043835,120]
[330137307,1719036084356,-500.0,0.00043835,120]
[330137308,1719036084396,-973.6,0.00043835,120]
[330137309,1719036084437,-500.0,0.00043835,120]
[330137310,1719036084478,-5517.34,0.00043835,120]
[330137311,1719036084515,-552.95541957,0.00043835,120]
[330137312,1719036084552,-500.0,0.00043835,120]
[330137313,1719036084591,-551.94,0.00043835,120]
[330137314,1719036084630,-1405.94,0.00043835,120]
[330137315,1719036084668,-645.56193494,0.00043835,120]
[330137316,1719036084706,-500.0,0.00043835,120]
[330137317,1719036084743,-933.54,0.00043835,120]
[330137318,1719036084781,-500.0,0.00043835,120]
[330137319,1719036084822,-780.03,0.00043835,120]
[330137320,1719036084859,-500.0,0.00043835,120]
[330137321,1719036084895,-2208.88,0.00043835,120]
[330137322,1719036084938,-778.18,0.00043835,120]
[330137323,1719036084981,-531.4,0.00043835,120]
[330137324,1719036085020,-500.0,0.00043835,120]
[330137325,1719036085059,-1010.49,0.00043835,120]
[330137326,1719036085099,-617.22,0.00043835,120]
[330137327,1719036085137,-595.47,0.00043835,120]
[330137328,1719036085176,-200.0,0.00043836,60]
[330137329,1719036085216,-579.77269249,0.0004388,30]
[330137330,1719036085257,-272.6578127,0.00044,120]
[330137331,1719036085297,-228.50749117,0.00044,60]
[330137332,1719036085338,-3000.0,0.00044,105]
[330137333,1719036085379,-679.218512,0.00044,57]
[330137334,1719036085422,-150.0,0.00044048,120]
[330137335,1719036085464,-500.0,0.00044109,120]
[330137336,1719036085503,-500.0,0.00044109,120]
[330137337,1719036085542,-500.0,0.00044109,120]
[330137338,1719036085580,-571.46,0.00044109,120]
[330137339,1719036085619,-500.0,0.00044109,120]
[330137340,1719036085658,-562.12,0.00044109,120]
[330137341,1719036085699,-500.0,0.00044109,120]
[330137342,1719036085739,-500.0,0.00044109,120]
[330137343,1719036085780,-500.0,0.00044109,120]
[330137344,1719036085820,-500.0,0.00044109,120]
[330137345,1719036085862,-500.0,0.00044109,120]
[330137346,1719036085903,-500.0,0.00044109,120]
[330137347,1719036085946,-779.97,0.00044109,120]
[330137348,1719036085984,-502.49368292,0.00044109,120]
[330137349,1719036086031,-603.25,0.00044109,120]
[330137350,1719036086073,-577.16,0.00044109,120]
[330137351,1719036086113,-500.0,0.00044109,120]
[330137352,1719036086151,-1153.1,0.00044109,120]
[330137353,1719036086191,-500.0,0.00044109,120]
[330137354,1719036086229,-500.0,0.00044109,120]
[330137355,1719036086267,-1000.0,0.00044109,120]
[330137356,1719036086601,-500.0,0.00044109,120]
[330137357,1719036086645,-500.0,0.00044109,120]
[330137358,1719036086682,-1041.84,0.00044109,120]
[330137359,1719036086721,-500.0,0.00044109,120]
[330137360,1719036086759,-500.0,0.00044109,120]
[330137361,1719036086799,-500.0,0.00044109,120]
[330137362,1719036086837,-500.0,0.00044109,120]
[330137363,1719036086876,-500.0,0.00044109,120]
[330137364,1719036086915,-1107.44,0.00044109,120]
[330137365,1719036086951,-509.7949374,0.00044109,120]
[330137366,1719036086989,-257.76907411,0.00044109,120]
[330137367,1719036087028,-500.0,0.00044109,120]
[330137368,1719036087069,-500.0,0.00044109,120]
[330137369,1719036087107,-566.32,0.00044109,120]
[330137370,1719036087146,-500.0,0.00044109,120]
[330137371,1719036087184,-500.0,0.00044109,120]
[330137372,1719036087225,-609.88,0.00044109,120]
[330137373,1719036087265,-656.18,0.00044109,120]
[330137374,1719036087304,-246.10487109,0.00044109,120]
[330137375,1719036087347,-500.0,0.00044109,120]
[330137376,1719036087387,-500.0,0.00044109,120]
[330137377,1719036087426,-500.0,0.00044109,120]
[330137378,1719036087464,-500.0,0.00044109,120]
[330137379,1719036087500,-562.170115,0.00044109,120]
[330137380,1719036087538,-500.0,0.00044109,120]
[330137381,1719036087576,-667.5,0.00044109,120]
[330137382,1719036087614,-208.81425067,0.00044109,120]
[330137383,1719036087654,-678.47,0.00044109,120]
[330137384,1719036087695,-500.0,0.00044109,120]
[330137385,1719036087732,-335.2274645,0.00044109,120]
[330137386,1719036087768,-500.0,0.00044109,120]
[330137387,1719036087803,-627.7,0.00044109,120]
[330137388,1719036087838,-732.49,0.00044109,120]
[330137389,1719036087874,-500.0,0.00044109,120]
[330137390,1719036087910,-618.67,0.00044109,120]
[330137391,1719036087951,-500.0,0.00044109,120]
[330137392,1719036087992,-500.0,0.00044109,120]
[330137393,1719036088028,-793.16,0.00044109,120]
[330137394,1719036088064,-500.0,0.00044109,120]
[330137395,1719036088103,-250.0,0.00044109,120]
[330137396,1719036088139,-500.0,0.00044109,120]
[330137397,1719036088176,-883.9,0.00044109,120]
[330137398,1719036088215,-500.0,0.00044109,120]
[330137399,1719036088251,-518.78,0.00044109,120]
[330137400,1719036088288,-1500.0,0.00044109,120]
[330137401,1719036088325,-500.0,0.00044109,120]
[330137402,1719036088361,-500.0,0.00044109,120]
[330137403,1719036088397,-500.0,0.00044109,120]
[330137404,1719036088433,-500.0,0.00044109,120]
[330137405,1719036088471,-500.0,0.00044109,120]
[330137406,1719036088508,-500.0,0.00044109,120]
[330137407,1719036088543,-500.0,0.00044109,120]
[330137408,1719036088579,-515.02375279,0.00044109,120]
[330137409,1719036088616,-587.47,0.00044109,120]
[330137410,1719036088656,-559.75,0.00044109,120]
[330137411,1719036088696,-500.0,0.00044109,120]
[330137412,1719036088734,-500.0,0.00044109,120]
[330137413,1719036088771,-618.11,0.00044109,120]
[330137414,1719036088810,-500.0,0.00044109,120]
[330137415,1719036088849,-500.0,0.00044109,120]
[330137416,1719036088887,-500.0,0.00044109,120]
[330137417,1719036088928,-940.47,0.00044109,120]
[330137418,1719036088964,-852.23,0.00044109,120]
[330137419,1719036089000,-525.48441037,0.00044109,120]
[330137420,1719036089038,-500.0,0.00044109,120]
[330137421,1719036089075,-500.0,0.00044109,120]
[330137422,1719036089112,-500.0,0.00044109,120]
[330137423,1719036089151,-500.0,0.00044109,120]
[330137424,1719036089193,-724.77,0.00044109,120]
[330137425,1719036089231,-500.0,0.00044109,120]
[330137426,1719036089270,-500.0,0.00044109,120]
[330137427,1719036089310,-500.0,0.00044109,120]
[330137428,1719036089430,-500.0,0.00044109,120]
[330137429,1719036089469,-500.0,0.00044109,120]
[330137430,1719036089505,-500.0,0.00044109,120]
[330137431,1719036089543,-505.95807474,0.00044109,120]
[330137432,1719036089583,-500.0,0.00044109,120]
[330137433,1719036089621,-500.0,0.00044109,120]
[330137434,1719036089658,-500.0,0.00044109,120]
[330137435,1719036089698,-500.0,0.00044109,120]
[330137436,1719036089736,-711.99,0.00044109,120]
[330137437,1719036089774,-500.0,0.00044109,120]
[330137438,1719036089812,-500.0,0.00044109,120]
[330137439,1719036089847,-500.0,0.00044109,120]
[330137440,1719036089883,-500.0,0.00044109,120]
[330137441,1719036089922,-500.0,0.00044109,120]
[330137442,1719036089958,-199.48095493,0.00044109,120]
[330137443,1719036089996,-500.0,0.00044109,120]
[330137444,1719036090033,-500.0,0.00044109,120]
[330137445,1719036090068,-500.0,0.00044109,120]
[330137446,1719036090104,-500.0,0.00044109,120]
[330137447,1719036090141,-500.0,0.00044109,120]
[330137448,1719036090180,-500.0,0.00044109,120]
[330137449,1719036090217,-500.0,0.00044109,120]
[330137450,1719036090253,-500.0,0.00044109,120]
[330137451,1719036090288,-500.0,0.00044109,120]
[330137452,1719036090325,-647.76,0.00044109,120]
[330137453,1719036090361,-500.0,0.00044109,120]
[330137454,1719036090397,-500.0,0.00044109,120]
[330137455,1719036090434,-577.36,0.00044109,120]
[330137456,1719036090468,-389.26572592,0.00044109,120]
[330137457,1719036090503,-500.0,0.00044109,120]
[330137458,1719036090538,-500.0,0.00044109,120]
[330137459,1719036090573,-607.69669605,0.00044109,120]
[330137460,1719036090609,-500.0,0.00044109,120]
[330137461,1719036090644,-500.0,0.00044109,120]
[330137462,1719036090679,-500.0,0.00044109,120]
[330137463,1719036090718,-500.0,0.00044109,120]
[330137464,1719036090756,-500.0,0.00044109,120]
[330137465,1719036090791,-500.0,0.00044109,120]
[330137466,1719036090826,-500.0,0.00044109,120]
[330137467,1719036090861,-518.2008739,0.00044109,120]
[330137468,1719036090898,-500.0,0.00044109,120]
[330137469,1719036090935,-502.49546158,0.00044109,120]
[330137470,1719036090970,-500.0,0.00044109,120]
[330137471,1719036091006,-500.0,0.00044109,120]
[330137472,1719036091042,-530.41737587,0.00044109,120]
[330137473,1719036091078,-500.0,0.00044109,120]
[330137474,1719036091114,-500.0,0.00044109,120]
[330137475,1719036091150,-500.0,0.00044109,120]
[330137476,1719036091188,-500.0,0.00044109,120]
[330137477,1719036091224,-500.0,0.00044109,120]
[330137478,1719036091262,-500.0,0.00044109,120]
[330137479,1719036091302,-500.0,0.00044109,120]
[330137480,1719036091341,-612.58,0.00044109,120]
[330137481,1719036091383,-344.61228203,0.00044109,120]
[330137482,1719036091421,-500.0,0.00044109,120]
[330137483,1719036091460,-500.0,0.00044109,120]
[330137484,1719036091496,-500.0,0.00044109,120]
[330137485,1719036091533,-500.0,0.00044109,120]
[330137486,1719036091569,-500.0,0.00044109,120]
[330137487,1719036091603,-794.29,0.00044109,120]
[330137488,1719036091639,-853.59,0.00044109,120]
[330137489,1719036091675,-500.0,0.00044109,120]
[330137490,1719036091712,-500.0,0.00044109,120]
[330137491,1719036091748,-500.0,0.00044109,120]
[330137492,1719036091783,-500.0,0.00044109,120]
[330137493,1719036091819,-500.0,0.00044109,120]
[330137494,1719036091855,-500.0,0.00044109,120]
[330137495,1719036091890,-675.91,0.00044109,120]
[330137496,1719036091927,-500.0,0.00044109,120]
[330137497,1719036091966,-750.0,0.00044109,120]
[330137498,1719036092003,-500.0,0.00044109,120]
[330137499,1719036092041,-517.17,0.00044109,120]
[330137500,1719036092080,-500.0,0.00044109,120]
[330137501,1719036092119,-500.0,0.00044109,120]
[330137502,1719036092156,-729.14,0.00044109,120]
[330137503,1719036092194,-825.81,0.00044109,120]
[330137504,1719036092230,-510.11,0.00044109,120]
[330137505,1719036092269,-561.6,0.00044109,120]
[330137506,1719036092306,-500.0,0.00044109,120]
[330137507,1719036092343,-500.0,0.00044109,120]
[330137508,1719036092383,-500.0,0.00044109,120]
[330137509,1719036092422,-619.72,0.00044109,120]
[330137510,1719036092460,-150.0,0.00044109,120]
[330137511,1719036092497,-500.0,0.00044109,120]
[330137512,1719036092535,-500.0,0.00044109,120]
[330137513,1719036092571,-500.0,0.00044109,120]
[330137514,1719036092605,-599.96067419,0.00044109,120]
[330137515,1719036092642,-500.0,0.00044109,120]
[330137516,1719036092680,-500.0,0.00044109,120]
[330137517,1719036092716,-498.77726317,0.00044109,120]
[330137518,1719036092751,-500.0,0.00044109,120]
[330137519,1719036092786,-500.0,0.00044109,120]
[330137520,1719036092823,-500.0,0.00044109,120]
[330137521,1719036092859,-500.0,0.00044109,120]
[330137522,1719036092895,-500.0,0.00044109,120]
[330137523,1719036092930,-733.64,0.00044109,120]
[330137524,1719036092964,-500.0,0.00044109,120]
[330137525,1719036093001,-754.04,0.00044109,120]
[330137526,1719036093040,-500.0,0.00044109,120]
[330137527,1719036093076,-500.0,0.00044109,120]
[330137528,1719036093112,-500.0,0.00044109,120]
[330137529,1719036093148,-500.0,0.00044109,120]
[330137530,1719036093184,-500.0,0.00044109,120]
[330137531,1719036093221,-500.0,0.00044109,120]
[330137532,1719036093257,-500.0,0.00044109,120]
[330137533,1719036093413,-500.0,0.00044109,120]
[330137534,1719036093454,-500.0,0.00044109,120]
[330137535,1719036093489,-500.0,0.00044109,120]
[330137536,1719036093524,-500.0,0.00044109,120]
[330137537,1719036093561,-500.0,0.00044109,120]
[330137538,1719036093601,-500.0,0.00044109,120]
[330137539,1719036093639,-521.07,0.00044109,120]
[330137540,1719036093676,-1301.4,0.00044109,120]
[330137541,1719036093714,-500.0,0.00044109,120]
[330137542,1719036093750,-500.0,0.00044109,120]
[330137543,1719036093786,-500.0,0.00044109,120]
[330137544,1719036093824,-500.0,0.00044109,120]
[330137545,1719036093862,-771.31,0.00044109,120]
[330137546,1719036093900,-589.79,0.00044109,120]
[330137547,1719036093940,-500.0,0.00044109,120]
[330137548,1719036093977,-500.0,0.00044109,120]
[330137549,1719036094016,-500.0,0.00044109,120]
[330137550,1719036094057,-500.0,0.00044109,120]
[330137551,1719036094094,-500.0,0.00044109,120]
[330137552,1719036094133,-500.0,0.00044109,120]
[330137553,1719036094171,-617.49,0.00044109,120]
[330137554,1719036094212,-567.27,0.00044109,120]
[330137555,1719036094252,-555.06,0.00044109,120]
[330137556,1719036094289,-500.0,0.00044109,120]
[330137557,1719036094326,-500.0,0.00044109,120]
[330137558,1719036094362,-500.0,0.00044109,120]
[330137559,1719036094399,-500.0,0.00044109,120]
[330137560,1719036094437,-500.0,0.00044109,120]
[330137561,1719036094477,-500.0,0.00044109,120]
[330137562,1719036094516,-500.0,0.00044109,120]
[330137563,1719036094556,-500.0,0.00044109,120]
[330137564,1719036094596,-339.60461469,0.00044109,120]
[330137565,1719036094636,-809.63,0.00044109,120]
[330137566,1719036094675,-500.0,0.00044109,120]
[330137567,1719036094714,-500.0,0.00044109,120]
[330137568,1719036094754,-505.39479104,0.00044109,120]
[330137569,1719036094794,-500.0,0.00044109,120]
[330137570,1719036094833,-500.0,0.00044109,120]
[330137571,1719036094873,-500.0,0.00044109,120]
[330137572,1719036094914,-500.0,0.00044109,120]
[330137573,1719036094954,-500.0,0.00044109,120]
[330137574,1719036094993,-500.0,0.00044109,120]
[330137575,1719036095037,-500.0,0.00044109,120]
[330137576,1719036095077,-500.0,0.00044109,120]
[330137577,1719036095116,-565.37,0.00044109,120]
[330137578,1719036095154,-500.0,0.00044109,120]
[330137579,1719036095193,-500.0,0.00044109,120]
[330137580,1719036095235,-500.0,0.00044109,120]
[330137581,1719036095275,-500.0,0.00044109,120]
[330137582,1719036095315,-517.53,0.00044109,120]
[330137583,1719036095356,-287.0202486,0.00044109,120]
[330137584,1719036095394,-500.0,0.00044109,120]
[330137585,1719036095432,-500.0,0.00044109,120]
[330137586,1719036095471,-500.0,0.00044109,120]
[330137587,1719036095509,-500.0,0.00044109,120]
[330137588,1719036095546,-500.0,0.00044109,120]
[330137589,1719036095584,-1048.79,0.00044109,120]
[330137590,1719036095624,-500.0,0.00044109,120]
[330137591,1719036095663,-500.0,0.00044109,120]
[330137592,1719036095703,-500.0,0.00044109,120]
[330137593,1719036095740,-500.0,0.00044109,120]
[330137594,1719036095778,-500.0,0.00044109,120]
[330137595,1719036095815,-500.0,0.00044109,120]
[330137596,1719036095852,-500.0,0.00044109,120]
[330137597,1719036095890,-500.0,0.00044109,120]
[330137598,1719036095926,-859.31,0.00044109,120]
[330137599,1719036095963,-500.0,0.00044109,120]
[330137600,1719036096001,-500.0,0.00044109,120]
[330137601,1719036096039,-500.0,0.00044109,120]
[330137602,1719036096075,-500.0,0.00044109,120]
[330137603,1719036096110,-500.0,0.00044109,120]
[330137604,1719036096146,-500.0,0.00044109,120]
[330137605,1719036096183,-500.0,0.00044109,120]
[330137606,1719036096220,-500.0,0.00044109,120]
[330137607,1719036096256,-680.04,0.00044109,120]
[330137608,1719036096292,-508.34468128,0.00044109,120]
[330137609,1719036096329,-923.35,0.00044109,120]
[330137610,1719036096373,-500.0,0.00044109,120]
[330137611,1719036096417,-618.05,0.00044109,120]
[330137612,1719036096463,-500.0,0.00044109,120]
[330137613,1719036096508,-835.72,0.00044109,120]
[330137614,1719036096557,-1250.75,0.00044109,120]